[Event "Niedersachsen-ch A 2024"]
[Site "Verden Aller"]
[Date "2024.01.05"]
[Round "3.3"]
[White "Lichtmannecker, Daniel"]
[Black "Miljkovic, Jovana"]
[Result "*"]
[ECO "D00"]
[WhiteElo "2124"]
[BlackElo "2035"]
[Annotator "RC"]
[PlyCount "45"]
[EventDate "2024.01.01"]
[EventType "swiss"]
[EventCountry "GER"]
[SourceTitle "playchess.com"]
[Source "ChessBase"]
[SourceQuality "1"]
[TimeControl "40/5400+30:1800+30"]

1. d4 {[%emt 0:00:21]} Nf6 {[%emt 0:00:07]} 2. Nc3 {[%emt 0:00:07]} d5 {[%emt 0:00:05]} 3. Bf4 {[%emt 0:00:13]} a6 {[%emt 0:00:06]} 4. e3 {[%emt 0:00:10]} e6 {[%emt 0:00:11]} 5. g4 {[%emt 0:00:10]} Bd6 {[%emt 0:02:26]} 6. Qf3 {[%emt 0:03:36]} Bxf4 {[%emt 0:04:21]} 7. Qxf4 {[%emt 0:00:07]} Qd6 {[%emt 0:02:00]} 8. Qxd6 {[%emt 0:02:32]} cxd6 {[%emt 0:00:05]} 9. f3 {[%emt 0:00:56]} h6 {[%emt 0:02:18]} 10. h4 {[%emt 0:05:48]} Nc6 {[%emt 0:02:14]} 11. Nge2 {[%emt 0:01:03]} b5 {[%emt 0:01:16]} 12. a3 {[%emt 0:02:58]} Bb7 {[%emt 0:04:31]} 13. Bg2 {[%emt 0:12:06]} Na5 {[%emt 0:04:01]} 14. b3 {[%emt 0:00:42]} Rc8 {[%emt 0:03:05]} 15. Kd2 {[%emt 0:03:18]} Ke7 {[%emt 0:01:27]} 16. g5 {[%emt 0:05:26]} hxg5 {[%emt 0:04:22]} 17. hxg5 {[%emt 0:00:08]} Nd7 {[%emt 0:00:49]} 18. Nf4 {[%emt 0:09:18]} g6 {[%emt 0:03:27]} 19. Nd3 {[%emt 0:08:13]} Nc6 {[%emt 0:05:37]} 20. f4 {[%emt 0:04:57]} Nb6 {[%emt 0:02:36]} 21. Nf2 {[%emt 0:04:50]} Nd7 {[%emt 0:01:30]} 22. Bf3 {[%emt 0:03:01]} Ba8 {[%emt 0:01:46]} 23. Ng4 {[%emt 0:32:00]} *

[Event "Niedersachsen-ch A 2024"]
[Site "Verden Aller"]
[Date "2024.01.05"]
[Round "3.4"]
[White "Kiesel, Lucas"]
[Black "Peters, Tom"]
[Result "*"]
[ECO "D24"]
[WhiteElo "1987"]
[BlackElo "2102"]
[Annotator "RC"]
[PlyCount "33"]
[EventDate "2024.01.01"]
[EventType "swiss"]
[EventCountry "GER"]
[SourceTitle "playchess.com"]
[Source "ChessBase"]
[SourceQuality "1"]
[TimeControl "40/5400+30:1800+30"]

1. d4 {[%emt 0:03:17]} Nf6 {[%emt 0:00:08]} 2. c4 {[%emt 0:00:04]} e6 {[%emt 0:00:07]} 3. Nf3 {[%emt 0:00:08]} d5 {[%emt 0:00:08]} 4. Nc3 {[%emt 1:29:01]} dxc4 {[%emt 0:00:09]} 5. e3 {[%emt 0:02:41]} a6 {[%emt 0:01:43]} 6. a4 {[%emt 0:00:40]} Nbd7 {[%emt 1:31:15]} 7. Bxc4 {[%emt 0:00:17]} Bd6 {[%emt 0:01:26]} 8. e4 {[%emt 0:06:04]} e5 {[%emt 0:07:43]} 9. dxe5 {[%emt 1:21:21]} Nxe5 {[%emt 0:00:09]} 10. Nxe5 {[%emt 0:07:06]} Bxe5 {[%emt 0:00:08]} 11. Qxd8+ {[%emt 0:00:01]} Kxd8 {[%emt 0:00:17]} 12. Bxf7 {[%emt 0:02:33]} Rf8 {[%emt 0:04:08]} 13. Bc4 {[%emt 0:13:54]} Bxc3+ {[%emt 0:03:27]} 14. bxc3 {[%emt 0:00:06]} Nxe4 {[%emt 0:00:07]} 15. f3 {[%emt 0:03:14]} Nd6 {[%emt 1:16:00]} 16. Bg5+ {[%emt 0:50:31]} Kd7 {[%emt 0:20:33]} 17. O-O-O {[%emt 0:11:37]} *

[Event "Niedersachsen-ch A 2024"]
[Site "Verden Aller"]
[Date "2024.01.05"]
[Round "3.5"]
[White "Celik, Abdullah"]
[Black "Koch, Yannick"]
[Result "*"]
[ECO "B15"]
[WhiteElo "2081"]
[BlackElo "1981"]
[Annotator "RC"]
[PlyCount "45"]
[EventDate "2024.01.01"]
[EventType "swiss"]
[EventCountry "GER"]
[SourceTitle "playchess.com"]
[Source "ChessBase"]
[SourceQuality "1"]
[TimeControl "40/5400+30:1800+30"]

1. e4 {[%emt 0:00:03]} c6 {[%emt 0:02:32]} 2. d4 {[%emt 0:00:37]} d5 {[%emt 0:00:05]} 3. Nd2 {[%emt 0:01:09]} dxe4 {[%emt 0:00:28]} 4. Nxe4 {[%emt 0:00:04]} Nf6 {[%emt 0:00:24]} 5. Nxf6+ {[%emt 0:00:50]} exf6 {[%emt 0:00:13]} 6. c3 {[%emt 0:00:33]} Bd6 {[%emt 0:00:30]} 7. Bd3 {[%emt 0:00:07]} O-O {[%emt 0:00:15]} 8. Ne2 {[%emt 0:00:01]} Re8 {[%emt 1:30:03]} 9. Qc2 {[%emt 0:00:21]} h5 {[%emt 0:00:26]} 10. Be3 {[%emt 0:00:06]} Nd7 {[%emt 0:01:18]} 11. O-O-O {[%emt 0:00:22]} Nf8 {[%emt 0:04:08]} 12. Kb1 {[%emt 0:00:13]} Be6 {[%emt 0:02:06]} 13. c4 {[%emt 0:01:41]} Rc8 {[%emt 0:01:07]} 14. Nc3 {[%emt 0:01:46]} Bb4 {[%emt 0:00:33]} 15. Ne4 {[%emt 0:19:31]} Be7 {[%emt 0:02:45]} 16. h3 {[%emt 0:05:27]} b5 {[%emt 0:03:53]} 17. c5 {[%emt 0:16:23]} Qa5 {[%emt 0:14:36]} 18. b3 {[%emt 0:00:04]} Qc7 {[%emt 0:03:10]} 19. g4 {[%emt 0:02:34]} h4 {[%emt 0:00:26]} 20. Nc3 {[%emt 0:05:30]} b4 {[%emt 0:05:16]} 21. Ne2 {[%emt 0:00:04]} Bd5 {[%emt 0:01:02]} 22. Rhg1 {[%emt 0:00:04]} Ne6 {[%emt 0:03:54]} 23. f4 {[%emt 0:07:34]} *

[Event "Niedersachsen-ch A 2024"]
[Site "Verden Aller"]
[Date "2024.01.05"]
[Round "3.6"]
[White "Nielsen, Lars Aaes"]
[Black "Ay, Furkan"]
[Result "1-0"]
[ECO "D85"]
[WhiteElo "2202"]
[BlackElo "1544"]
[Annotator "RC"]
[PlyCount "29"]
[EventDate "2024.01.01"]
[EventType "swiss"]
[EventCountry "GER"]
[SourceTitle "playchess.com"]
[Source "ChessBase"]
[SourceQuality "1"]
[TimeControl "40/5400+30:1800+30"]

1. d4 {[%emt 0:00:11]} Nf6 {[%emt 0:00:08]} 2. Nf3 {[%emt 0:00:12]} g6 {[%emt 0:00:09]} 3. c4 {[%emt 0:00:50]} Bg7 {[%emt 0:00:11]} 4. Nc3 {[%emt 0:00:08]} d5 {[%emt 0:00:06]} 5. cxd5 {[%emt 0:00:28]} Nxd5 {[%emt 0:00:10]} 6. e4 {[%emt 0:00:11]} Nxc3 {[%emt 0:00:10]} 7. bxc3 {[%emt 0:00:01]} c5 {[%emt 0:00:10]} 8. Rb1 {[%emt 0:03:24]} Nc6 {[%emt 0:02:39]} 9. Bb5 {[%emt 0:03:06]} Qa5 {[%emt 0:02:01]} 10. Bd2 {[%emt 0:03:24]} Bg4 {[%emt 0:05:03]} 11. d5 {[%emt 0:05:56]} a6 {[%emt 0:02:23]} 12. c4 {[%emt 0:07:26]} Qxa2 {[%emt 0:12:41]} 13. Ba4 {[%emt 0:02:44]} b5 {[%emt 0:05:08]} 14. cxb5 {[%emt 0:04:07]} Nd4 {[%emt 0:03:49]} 15. bxa6+ {[%emt 0:02:10]} 1-0

[Event "Niedersachsen-ch A 2024"]
[Site "Verden Aller"]
[Date "2024.01.05"]
[Round "3.7"]
[White "Hebbinghaus, Holger"]
[Black "Kiesel, Harald"]
[Result "*"]
[ECO "C07"]
[WhiteElo "2164"]
[BlackElo "1975"]
[Annotator "RC"]
[PlyCount "34"]
[EventDate "2024.01.01"]
[EventType "swiss"]
[EventCountry "GER"]
[SourceTitle "playchess.com"]
[Source "ChessBase"]
[SourceQuality "1"]
[TimeControl "40/5400+30:1800+30"]

1. e4 {[%emt 0:00:03]} e6 {[%emt 0:00:05]} 2. d4 {[%emt 0:00:09]} d5 {[%emt 0:00:06]} 3. Nd2 {[%emt 0:00:07]} c5 {[%emt 0:00:06]} 4. Ngf3 {[%emt 0:00:07]} Nc6 {[%emt 0:00:51]} 5. exd5 {[%emt 0:00:31]} Qxd5 {[%emt 0:01:52]} 6. Bc4 {[%emt 0:01:50]} Qd7 {[%emt 0:01:20]} 7. dxc5 {[%emt 1:31:13]} Bxc5 {[%emt 0:01:13]} 8. O-O {[%emt 0:03:26]} Nf6 {[%emt 0:01:13]} 9. Qe2 {[%emt 0:00:52]} O-O {[%emt 0:01:50]} 10. Ne4 {[%emt 0:03:35]} Nxe4 {[%emt 0:22:58]} 11. Qxe4 {[%emt 0:00:16]} h6 {[%emt 0:01:24]} 12. Bf4 {[%emt 0:09:56]} Qe7 {[%emt 0:03:21]} 13. Rad1 {[%emt 0:05:34]} Bd7 {[%emt 0:02:17]} 14. c3 {[%emt 1:09:58]} a5 {[%emt 0:02:05]} 15. Bd3 {[%emt 0:05:38]} f5 {[%emt 0:01:33]} 16. Qe2 {[%emt 0:00:24]} Rae8 {[%emt 0:07:58]} 17. Bb5 {[%emt 0:10:45]} Rd8 {[%emt 0:09:25]} *

[Event "Niedersachsen-ch A 2024"]
[Site "Verden Aller"]
[Date "2024.01.05"]
[Round "3.8"]
[White "Gottschalk, Siegfried"]
[Black "Lau, Udo"]
[Result "*"]
[ECO "E32"]
[WhiteElo "1939"]
[BlackElo "2071"]
[Annotator "RC"]
[PlyCount "36"]
[EventDate "2024.01.01"]
[EventType "swiss"]
[EventCountry "GER"]
[SourceTitle "playchess.com"]
[Source "ChessBase"]
[SourceQuality "1"]
[TimeControl "40/5400+30:1800+30"]

1. d4 {[%emt 0:00:02]} Nf6 {[%emt 0:00:21]} 2. c4 {[%emt 0:00:17]} e6 {[%emt 0:00:17]} 3. Nc3 {[%emt 0:00:07]} Bb4 {[%emt 0:00:47]} 4. Qc2 {[%emt 0:00:23]} b6 {[%emt 0:01:16]} 5. e4 {[%emt 0:01:33]} Bb7 {[%emt 0:01:01]} 6. Bd3 {[%emt 0:02:44]} Nc6 {[%emt 0:01:52]} 7. Nf3 {[%emt 0:04:43]} Be7 {[%emt 0:06:44]} 8. a3 {[%emt 0:01:29]} d6 {[%emt 0:00:43]} 9. O-O {[%emt 0:21:29]} Nd7 {[%emt 0:05:44]} 10. Be3 {[%emt 0:05:44]} a5 {[%emt 0:05:20]} 11. Rad1 {[%emt 0:04:04]} Bf6 {[%emt 0:07:12]} 12. Rfe1 {[%emt 0:05:02]} h6 {[%emt 0:06:01]} 13. Bf1 {[%emt 0:04:41]} Qe7 {[%emt 0:00:48]} 14. d5 {[%emt 0:08:53]} Nce5 {[%emt 0:03:43]} 15. Nd4 {[%emt 0:01:01]} g5 {[%emt 0:01:22]} 16. b4 {[%emt 0:36:18]} O-O {[%emt 0:02:23]} 17. Be2 {[%emt 0:05:20]} axb4 {[%emt 0:03:26]} 18. axb4 {[%emt 0:00:06]} c5 {[%emt 0:00:09]} *

[Event "Niedersachsen-ch A 2024"]
[Site "Verden Aller"]
[Date "2024.01.05"]
[Round "3.9"]
[White "Witthaus, Joerg"]
[Black "Sickmann, Lisa"]
[Result "*"]
[ECO "D37"]
[WhiteElo "2029"]
[BlackElo "1961"]
[Annotator "RC"]
[PlyCount "42"]
[EventDate "2024.01.01"]
[EventType "swiss"]
[EventCountry "GER"]
[SourceTitle "playchess.com"]
[Source "ChessBase"]
[SourceQuality "1"]
[TimeControl "40/5400+30:1800+30"]

1. d4 {[%emt 1:31:00]} d5 {[%emt 0:01:50]} 2. Nf3 {[%emt 0:00:00]} Nf6 {[%emt 0:00:05]} 3. c4 {[%emt 0:00:00]} e6 {[%emt 0:00:04]} 4. Nc3 {[%emt 0:00:00]} Be7 {[%emt 0:00:15]} 5. Bf4 {[%emt 0:00:00]} O-O {[%emt 0:00:50]} 6. e3 {[%emt 0:00:00]} b6 {[%emt 0:00:13]} 7. Qc2 {[%emt 0:03:00]} c5 {[%emt 0:04:32]} 8. dxc5 {[%emt 0:00:00]} bxc5 {[%emt 0:00:00]} 9. Rd1 {[%emt 0:00:00]} Bb7 {[%emt 0:00:00]} 10. Be2 {[%emt 0:00:00]} Nbd7 {[%emt 0:01:30]} 11. O-O {[%emt 0:00:00]} Rc8 {[%emt 0:00:00]} 12. Ne5 {[%emt 0:00:30]} Nxe5 {[%emt 0:00:00]} 13. Bxe5 {[%emt 0:00:00]} Nd7 {[%emt 0:00:00]} 14. Bg3 {[%emt 0:00:00]} Nb6 {[%emt 0:00:00]} 15. cxd5 {[%emt 0:00:00]} exd5 {[%emt 0:00:00]} 16. Bf3 {[%emt 0:02:00]} Qd7 {[%emt 0:01:00]} 17. Qb3 {[%emt 0:00:00]} Rfd8 {[%emt 0:00:00]} 18. a4 {[%emt 0:00:00]} d4 {[%emt 0:00:00]} 19. Bxb7 {[%emt 0:00:00]} Qxb7 {[%emt 0:00:00]} 20. exd4 {[%emt 0:00:00]} cxd4 {[%emt 0:00:00]} 21. Nb5 {[%emt 0:00:00]} Nc4 {[%emt 0:00:00]} *

[Event "Niedersachsen-ch A 2024"]
[Site "Verden Aller"]
[Date "2024.01.05"]
[Round "3.10"]
[White "Martin, Dennis"]
[Black "Moeller, Tom"]
[Result "*"]
[ECO "D31"]
[WhiteElo "1991"]
[BlackElo "1677"]
[Annotator "RC"]
[PlyCount "52"]
[EventDate "2024.01.01"]
[EventType "swiss"]
[EventCountry "GER"]
[SourceTitle "playchess.com"]
[Source "ChessBase"]
[SourceQuality "1"]
[TimeControl "40/5400+30:1800+30"]

1. d4 {[%emt 0:00:01]} d5 {[%emt 0:00:06]} 2. c4 {[%emt 0:00:02]} e6 {[%emt 0:00:05]} 3. Nf3 {[%emt 0:00:06]} c6 {[%emt 0:00:07]} 4. Nc3 {[%emt 0:00:02]} dxc4 {[%emt 0:00:19]} 5. a4 {[%emt 1:32:49]} Bb4 {[%emt 0:01:29]} 6. Bd2 {[%emt 0:00:00]} Nf6 {[%emt 0:01:38]} 7. e3 {[%emt 0:00:00]} Bxc3 {[%emt 0:07:07]} 8. Bxc3 {[%emt 0:00:00]} b5 {[%emt 0:00:10]} 9. Ne5 {[%emt 0:00:00]} Bb7 {[%emt 0:01:47]} 10. Be2 {[%emt 0:00:00]} Nbd7 {[%emt 0:04:42]} 11. Nxd7 {[%emt 0:00:00]} Qxd7 {[%emt 0:00:14]} 12. Bb4 {[%emt 0:00:00]} a5 {[%emt 0:01:42]} 13. Bd2 {[%emt 0:00:00]} O-O {[%emt 0:01:25]} 14. O-O {[%emt 0:00:30]} Ra7 {[%emt 1:16:39]} 15. axb5 {[%emt 0:00:00]} cxb5 {[%emt 0:00:00]} 16. Rxa5 {[%emt 0:00:00]} Rxa5 {[%emt 0:00:00]} 17. Bxa5 {[%emt 0:00:00]} Ra8 {[%emt 0:00:00]} 18. Be1 {[%emt 0:00:00]} Be4 {[%emt 0:00:00]} 19. f3 {[%emt 0:00:00]} Bg6 {[%emt 0:00:00]} 20. e4 {[%emt 0:00:00]} Ra2 {[%emt 0:00:00]} 21. Bc3 {[%emt 0:00:00]} Qb7 {[%emt 0:03:30]} 22. Rf2 {[%emt 0:00:00]} Nd7 {[%emt 0:00:30]} 23. Bf1 {[%emt 0:00:00]} Nb6 {[%emt 0:00:00]} 24. Bb4 {[%emt 0:00:00]} Ra4 {[%emt 0:00:00]} 25. Be1 {[%emt 0:00:00]} f5 {[%emt 0:00:00]} 26. b3 {[%emt 0:00:00]} Ra8 {[%emt 0:00:00]} *

[Event "Niedersachsen-ch A 2024"]
[Site "Verden Aller"]
[Date "2024.01.05"]
[Round "3.11"]
[White "Boerma, Daniel"]
[Black "Weigand, Anton"]
[Result "*"]
[ECO "B40"]
[WhiteElo "1905"]
[BlackElo "2013"]
[Annotator "RC"]
[PlyCount "50"]
[EventDate "2024.01.01"]
[EventType "swiss"]
[EventCountry "GER"]
[SourceTitle "playchess.com"]
[Source "ChessBase"]
[SourceQuality "1"]
[TimeControl "40/5400+30:1800+30"]

1. e4 {[%emt 0:00:05]} c5 {[%emt 0:00:45]} 2. Nf3 {[%emt 0:00:17]} e6 {[%emt 0:00:06]} 3. d4 {[%emt 0:00:41]} cxd4 {[%emt 0:00:07]} 4. Nxd4 {[%emt 0:00:14]} Nf6 {[%emt 0:00:04]} 5. Bd3 {[%emt 0:03:31]} Nc6 {[%emt 0:00:30]} 6. Nxc6 {[%emt 0:00:34]} dxc6 {[%emt 0:00:15]} 7. O-O {[%emt 0:00:26]} e5 {[%emt 0:01:05]} 8. Nd2 {[%emt 0:01:23]} Be6 {[%emt 0:03:32]} 9. Qe2 {[%emt 0:00:19]} Qc7 {[%emt 0:06:08]} 10. Nc4 {[%emt 0:00:22]} Bc5 {[%emt 0:02:57]} 11. h3 {[%emt 0:04:45]} b5 {[%emt 0:03:34]} 12. Ne3 {[%emt 0:00:12]} O-O {[%emt 0:00:33]} 13. a4 {[%emt 0:01:49]} a6 {[%emt 0:01:40]} 14. Qf3 {[%emt 0:05:34]} Ne8 {[%emt 1:16:14]} 15. axb5 {[%emt 0:01:03]} cxb5 {[%emt 0:01:20]} 16. Bxb5 {[%emt 0:04:09]} Nd6 {[%emt 0:06:14]} 17. Bd3 {[%emt 0:00:17]} Nb5 {[%emt 0:01:32]} 18. c3 {[%emt 0:02:38]} Rfb8 {[%emt 0:05:02]} 19. Nd5 {[%emt 1:11:41]} Bxd5 {[%emt 0:05:43]} 20. exd5 {[%emt 0:00:15]} Nd6 {[%emt 0:00:08]} 21. Re1 {[%emt 0:03:37]} f6 {[%emt 0:03:44]} 22. Ra4 {[%emt 0:04:52]} Qf7 {[%emt 0:04:07]} 23. b4 {[%emt 0:07:12]} Bb6 {[%emt 0:00:14]} 24. Be3 {[%emt 0:01:09]} Qe8 {[%emt 0:03:35]} 25. Bxb6 {[%emt 0:02:49]} Qxa4 {[%emt 0:03:33]} *

[Event "Niedersachsen-ch A 2024"]
[Site "Verden Aller"]
[Date "2024.01.05"]
[Round "3.12"]
[White "Buecklers, Martin"]
[Black "Schulz, Jens"]
[Result "0-1"]
[ECO "B22"]
[WhiteElo "1877"]
[BlackElo "2152"]
[Annotator "RC"]
[PlyCount "80"]
[EventDate "2024.01.01"]
[EventType "swiss"]
[EventCountry "GER"]
[SourceTitle "playchess.com"]
[Source "ChessBase"]
[SourceQuality "1"]
[TimeControl "40/5400+30:1800+30"]

1. e4 {[%emt 0:00:17]} c5 {[%emt 0:00:07]} 2. Nf3 {[%emt 0:00:05]} Nc6 {[%emt 0:00:05]} 3. c3 {[%emt 0:00:05]} d5 {[%emt 0:00:15]} 4. exd5 {[%emt 0:00:07]} Qxd5 {[%emt 0:00:06]} 5. d4 {[%emt 0:00:06]} e6 {[%emt 0:00:48]} 6. Be3 {[%emt 0:01:37]} cxd4 {[%emt 0:02:00]} 7. cxd4 {[%emt 0:02:44]} Nf6 {[%emt 0:02:04]} 8. Nc3 {[%emt 0:03:25]} Qd6 {[%emt 0:00:33]} 9. Rc1 {[%emt 0:04:54]} Be7 {[%emt 0:04:06]} 10. Bd3 {[%emt 0:05:43]} O-O {[%emt 0:01:35]} 11. h3 {[%emt 0:00:48]} a6 {[%emt 0:08:05]} 12. O-O {[%emt 0:00:56]} Nb4 {[%emt 0:08:21]} 13. Bb1 {[%emt 0:05:51]} b5 {[%emt 0:01:08]} 14. Ng5 {[%emt 0:10:31]} Bb7 {[%emt 0:08:12]} 15. a3 {[%emt 0:05:50]} Nbd5 {[%emt 0:00:17]} 16. Nce4 Nxe4 {[%emt 0:04:26]} 17. Nxe4 {[%emt 0:05:41]} Nxe3 {[%emt 0:02:55]} 18. fxe3 {[%emt 0:00:51]} Qd5 {[%emt 0:20:59]} 19. Rc7 {[%emt 0:07:25]} Bd8 {[%emt 0:03:16]} 20. Rc5 {[%emt 0:01:42]} Qd7 {[%emt 0:00:17]} 21. Nf6+ {[%emt 0:13:09]} Bxf6 {[%emt 0:02:56]} 22. Rxf6 {[%emt 0:01:11]} g6 {[%emt 0:01:30]} 23. h4 {[%emt 0:08:03]} Rac8 {[%emt 0:09:12]} 24. Re5 {[%emt 0:02:07]} Kg7 {[%emt 0:05:34]} 25. Qf1 {[%emt 0:03:40]} Qc6 {[%emt 0:06:53]} 26. Be4 {[%emt 0:04:22]} Qc7 {[%emt 0:00:52]} 27. Rc5 {[%emt 0:04:24]} Qe7 {[%emt 0:00:05]} 28. Rxc8 {[%emt 0:01:06]} Rxc8 {[%emt 0:00:11]} 29. Bxb7 {[%emt 0:01:14]} Qxb7 {[%emt 0:00:01]} 30. Rf4 {[%emt 0:03:40]} f5 {[%emt 0:00:40]} 31. Qd3 {[%emt 0:00:27]} Qd5 {[%emt 0:01:23]} 32. Rf2 {[%emt 0:01:23]} Rc1+ {[%emt 0:03:42]} 33. Kh2 {[%emt 0:01:05]} Qd6+ {[%emt 0:00:24]} 34. g3 {[%emt 0:00:20]} Qc6 {[%emt 0:00:13]} 35. Rg2 {[%emt 0:00:36]} Qf3 {[%emt 0:01:34]} 36. Qd2 {[%emt 0:00:36]} Qf1 {[%emt 0:01:22]} 37. g4 {[%emt 0:00:52]} fxg4 {[%emt 0:00:36]} 38. Qb4 {[%emt 0:01:40]} Qh1+ {[%emt 0:00:33]} 39. Kg3 {[%emt 0:00:04]} Qh3+ {[%emt 0:00:45]} 40. Kf4 {[%emt 0:00:31]} Qf3+ {[%emt 0:00:06]} 0-1

[Event "Niedersachsen-ch A 2024"]
[Site "Verden Aller"]
[Date "2024.01.05"]
[Round "3.13"]
[White "Schiller, Jan-Hendrik"]
[Black "Trunz, Michelle"]
[Result "*"]
[ECO "A11"]
[WhiteElo "1881"]
[BlackElo "2023"]
[Annotator "RC"]
[PlyCount "39"]
[EventDate "2024.01.01"]
[EventType "swiss"]
[EventCountry "GER"]
[SourceTitle "playchess.com"]
[Source "ChessBase"]
[SourceQuality "1"]
[TimeControl "40/5400+30:1800+30"]

1. Nf3 {[%emt 0:08:04]} d5 {[%emt 0:00:00]} 2. g3 {[%emt 1:23:26]} Nf6 {[%emt 0:00:00]} 3. Bg2 {[%emt 0:00:30]} c6 {[%emt 0:00:00]} 4. O-O {[%emt 1:23:31]} Bf5 {[%emt 0:00:00]} 5. c4 {[%emt 0:00:47]} e6 {[%emt 0:01:24]} 6. cxd5 {[%emt 0:00:12]} exd5 {[%emt 0:01:08]} 7. d3 {[%emt 0:00:34]} Be7 {[%emt 0:01:56]} 8. Nc3 {[%emt 0:02:11]} O-O {[%emt 0:01:00]} 9. Qc2 {[%emt 0:03:47]} Na6 {[%emt 0:13:31]} 10. a3 {[%emt 0:01:42]} Rc8 {[%emt 0:02:11]} 11. e4 {[%emt 0:03:42]} Be6 {[%emt 0:01:10]} 12. h3 {[%emt 1:13:58]} c5 {[%emt 0:06:07]} 13. Ng5 {[%emt 0:02:03]} Qd7 {[%emt 0:07:02]} 14. Nxe6 {[%emt 0:08:57]} fxe6 {[%emt 0:00:05]} 15. exd5 {[%emt 0:02:31]} exd5 {[%emt 0:00:06]} 16. Bg5 {[%emt 0:54:36]} Nc7 {[%emt 0:02:13]} 17. Qb3 {[%emt 0:02:42]} Rfd8 {[%emt 0:02:39]} 18. Rfe1 {[%emt 0:05:12]} h6 {[%emt 0:03:37]} 19. Bf4 {[%emt 0:08:42]} Ne6 {[%emt 0:05:06]} 20. Be5 {[%emt 0:01:40]} *

[Event "Niedersachsen-ch A 2024"]
[Site "Verden Aller"]
[Date "2024.01.05"]
[Round "3.14"]
[White "Monnerjahn, Lukas"]
[Black "Hoellmann, Ludger"]
[Result "0-1"]
[ECO "E04"]
[WhiteElo "1856"]
[BlackElo "2015"]
[Annotator "NA RC"]
[PlyCount "94"]
[EventDate "2024.01.01"]
[EventType "swiss"]
[EventCountry "GER"]
[SourceTitle "playchess.com"]
[Source "ChessBase"]
[SourceQuality "1"]
[TimeControl "40/5400+30:1800+30"]

1. d4 {[%emt 0:00:03]} d5 {[%emt 0:00:14]} 2. c4 {[%emt 0:00:06]} e6 {[%emt 0:00:05]} 3. Nf3 {[%emt 0:00:04]} Nf6 {[%emt 0:00:10]} 4. g3 {[%emt 0:00:03]} dxc4 {[%emt 0:00:23]} 5. Bg2 {[%emt 0:00:07]} c5 $11 {[%emt 0:00:18]} 6. Qc2 {[%emt 0:03:36]} Nc6 {[%emt 0:05:37]} 7. dxc5 {[%emt 0:02:14]} Qa5+ {[%emt 0:07:21]} 8. Nbd2 {[%emt 0:02:43]} e5 {[%emt 0:11:50]} 9. O-O {[%emt 0:07:19]} Qxc5 {[%emt 0:00:26]} 10. Nxc4 {[%emt 0:15:07]} Be6 {[%emt 0:00:55]} 11. Na3 {[%emt 0:03:00]} Rc8 {[%emt 0:09:11]} 12. Be3 {[%emt 0:01:43]} Qxc2 {[%emt 0:00:52]} 13. Nxc2 {[%emt 0:00:01]} Be7 {[%emt 0:04:17]} 14. b3 {[%emt 0:06:12]} O-O {[%emt 0:07:00]} 15. Bg5 {[%emt 0:09:16]} h6 {[%emt 0:01:57]} 16. Bxf6 {[%emt 0:00:04]} Bxf6 {[%emt 0:00:05]} 17. e4 {[%emt 0:01:19]} Be7 {[%emt 0:06:30]} 18. Ne3 {[%emt 0:03:44]} Bc5 {[%emt 0:02:13]} 19. Nd5 {[%emt 0:03:27]} Rfd8 {[%emt 0:07:02]} 20. Rfd1 {[%emt 0:01:16]} f6 {[%emt 0:03:20]} 21. a3 {[%emt 0:03:16]} a5 {[%emt 0:02:34]} 22. a4 {[%emt 0:02:27]} Kf7 {[%emt 0:00:50]} 23. Rac1 {[%emt 0:13:31]} Nd4 {[%emt 0:02:51]} 24. Nxd4 {[%emt 0:02:15]} Bxd4 {[%emt 0:00:07]} 25. Bf1 {[%emt 0:09:17]} f5 {[%emt 0:07:26]} 26. Rxc8 {[%emt 0:01:55]} Rxc8 {[%emt 0:01:24]} 27. Bc4 {[%emt 0:00:07]} fxe4 {[%emt 0:00:24]} 28. Kg2 {[%emt 0:01:38]} Bg4 {[%emt 0:08:23]} 29. Re1 {[%emt 0:03:28]} Bf3+ {[%emt 0:00:17]} 30. Kf1 {[%emt 0:00:10]} Kf8 {[%emt 0:01:07]} 31. Rc1 {[%emt 0:00:34]} Rc6 {[%emt 0:02:27]} 32. Rc2 {[%emt 0:00:52]} h5 {[%emt 0:00:46]} 33. h3 {[%emt 0:00:10]} g5 {[%emt 0:00:46]} 34. Rd2 {[%emt 0:00:41]} Kg7 {[%emt 0:01:19]} 35. Ne7 {[%emt 0:00:40]} Rf6 {[%emt 0:00:35]} 36. Nd5 {[%emt 0:01:33]} Rf8 {[%emt 0:00:12]} 37. Kg1 {[%emt 0:01:01]} h4 {[%emt 0:03:35]} 38. g4 {[%emt 0:00:06]} e3 {[%emt 0:02:17]} 39. Nxe3 {[%emt 0:00:51]} Bxe3 {[%emt 0:00:10]} 40. fxe3 {[%emt 0:00:05]} Bc6 {[%emt 0:00:10]} 41. Rf2 {[%emt 0:05:03]} Rf6 {[%emt 0:05:07]} 42. Kf1 {[%emt 0:02:44]} Bf3 {[%emt 0:02:01]} 43. Ke1 {[%emt 0:01:14]} Be4 {[%emt 0:01:30]} 44. Rxf6 {[%emt 0:04:00]} Kxf6 {[%emt 0:00:02]} 45. Bf1 {[%emt 0:00:07]} Ke6 {[%emt 0:01:29]} 46. Kd2 {[%emt 0:00:06]} Kd6 {[%emt 0:00:06]} 47. Kc3 {[%emt 0:02:38]} Kc5 {[%emt 0:26:19]} 0-1